fUSD/lending_fUSD_20251017
["ID","MTS","AMOUNT","RATE_DAILY","PERIOD"]
[391652050,1760717449566,-1589.0,0.00030145,2]
[391652051,1760717449577,-816.0,0.00030145,2]
[391652052,1760717449586,-2546.0,0.00030145,2]
[391652053,1760717449595,-436.0,0.00030161,2]
[391652054,1760717449606,-837.83969616,0.00030175,2]
[391652055,1760717449615,-2600.0,0.00030177,7]
[391652056,1760717449625,-800.0,0.00030177,7]
[391652057,1760717449634,-500.0,0.00030232,15]
[391652058,1760717449644,-2101.0,0.00030238,2]
[391652059,1760717449654,-5262.52740076,0.00030277,2]
[391652060,1760717449663,-153.0,0.00030287,2]
[391652061,1760717449673,-153.0,0.00030287,2]
[391652062,1760717449683,-153.0,0.00030287,2]
[391652063,1760717449692,-153.0,0.00030287,2]
[391652064,1760717449702,-2729.82825464,0.00030334,2]
[391652065,1760717449711,-1000.0,0.00030408,120]
[391652066,1760717449721,-500.0,0.00030408,17]
[391652067,1760717449730,-500.0,0.00030409,17]
[391652068,1760717449740,-432.22,0.00030409,17]
[391652069,1760717449750,-566.95,0.0003041,17]
[391652070,1760717449760,-952.75,0.0003041,17]
[391652071,1760717449769,-753.66,0.0003041,17]
[391652072,1760717449780,-500.0,0.0003041,17]
[391652073,1760717449789,-150.0,0.00030445,120]
[391652074,1760717449799,-434.0,0.0003048,2]
[391652075,1760717449808,-434.0,0.00030489,2]
[391652076,1760717449820,-837.83969616,0.00030505,2]
[391652077,1760717449830,-500.0,0.00030506,15]
[391652078,1760717449839,-1000.0,0.00030545,120]
[391652079,1760717449848,-2101.0,0.00030547,2]
[391652080,1760717449858,-1441.91,0.00030559,2]
[391652081,1760717449867,-474.66,0.00030559,2]
[391652082,1760717449877,-151.0,0.00030618,7]
[391652083,1760717449887,-1134.69,0.0003062,2]
[391652084,1760717449897,-2800.38,0.0003062,2]
[391652085,1760717449907,-10649.9,0.0003062,10]
[391652086,1760717449916,-9999.99,0.0003062,2]
[391652087,1760717449925,-1181.51,0.0003062,2]
[391652088,1760717449934,-999.99,0.0003062,2]
[391652089,1760717449944,-299.99,0.0003062,12]
[391652090,1760717449954,-150.99,0.0003062,2]
[391652091,1760717449964,-9999.99,0.0003062,2]
[391652092,1760717449977,-150.99,0.0003062,2]
[391652093,1760717449990,-1000.0,0.00030682,120]
[391652094,1760717450000,-566.95,0.00030684,17]
[391652095,1760717450011,-952.75,0.00030684,17]
[391652096,1760717450020,-753.66,0.00030684,17]
[391652097,1760717450030,-500.0,0.00030684,17]
[391652098,1760717450040,-284.01115924,0.00030685,2]
[391652099,1760717450053,-434.0,0.00030703,7]
[391652100,1760717450062,-700.0,0.00030725,7]
[391652101,1760717450074,-1199.37,0.00030726,2]
[391652102,1760717450320,-1199.37,0.00030726,2]
[391652103,1760717450330,-1199.37,0.00030726,2]
[391652104,1760717450340,-1199.37,0.00030726,2]
[391652105,1760717450350,-1199.37,0.00030726,2]
[391652106,1760717450359,-1199.37,0.00030726,2]
[391652107,1760717450370,-1199.37,0.00030726,2]
[391652108,1760717450380,-1199.37,0.00030726,2]
[391652109,1760717450390,-1199.37,0.00030726,2]
[391652110,1760717450400,-1199.37,0.00030726,2]
[391652111,1760717450409,-1199.37,0.00030726,2]
[391652112,1760717450419,-1199.37,0.00030726,2]
[391652113,1760717450428,-1199.37,0.00030726,2]
[391652114,1760717450438,-1199.37,0.00030726,2]
[391652115,1760717450447,-1199.37,0.00030726,2]
[391652116,1760717450457,-436.0,0.00030738,2]
[391652117,1760717450467,-500.0,0.0003078,15]
[391652118,1760717450476,-1000.0,0.00030819,120]
[391652119,1760717450486,-2000.0,0.0003083,120]
[391652120,1760717450496,-434.0,0.00030831,2]
[391652121,1760717450506,-2101.0,0.00030855,2]
[391652122,1760717450516,-767.6893293,0.00030855,2]
[391652123,1760717450527,-837.83969616,0.00030903,2]
[391652124,1760717450536,-150.0,0.00030929,120]
[391652125,1760717450546,-1120.35027925,0.00030956,120]
[391652126,1760717450556,-566.95,0.00030958,17]
[391652127,1760717450568,-952.75,0.00030958,17]
[391652128,1760717450578,-753.66,0.00030958,17]
[391652129,1760717450587,-499.84818409,0.00030958,17]
[391652130,1760717450597,-23380.65999765,0.0003097,2]
[391652131,1760717450606,-2600.0,0.00030999,7]
[391652132,1760717450616,-800.0,0.00030999,7]
[391652133,1760717450626,-434.0,0.00031031,2]
[391652134,1760717450636,-200.0,0.00031051,2]
[391652135,1760717450645,-500.0,0.00031054,15]
[391652136,1760717450657,-2493.82094938,0.00031107,2]
[391652137,1760717450666,-150.0,0.00031119,120]
[391652138,1760717450676,-837.8396962,0.00031156,2]
[391652139,1760717450686,-2101.0,0.00031164,2]
[391652140,1760717450696,-434.0,0.00031166,2]
[391652141,1760717450706,-326.27104919,0.00031175,2]
[391652142,1760717450715,-5262.52740076,0.00031184,2]
[391652143,1760717450725,-200.0,0.000312,2]
[391652144,1760717450735,-151.0,0.00031207,30]
[391652145,1760717450744,-151.0,0.00031207,30]
[391652146,1760717450754,-151.0,0.00031207,30]
[391652147,1760717450763,-151.0,0.00031207,30]
[391652148,1760717450773,-151.0,0.00031207,15]
[391652149,1760717450782,-151.0,0.00031207,30]
[391652150,1760717450791,-151.0,0.00031207,30]
[391652151,1760717450801,-151.0,0.00031207,30]
[391652152,1760717450811,-151.0,0.00031207,30]
[391652153,1760717450821,-151.0,0.00031207,30]
[391652154,1760717450831,-151.0,0.00031207,30]
[391652155,1760717450840,-151.0,0.00031207,30]
[391652156,1760717450850,-151.0,0.00031207,30]
[391652157,1760717450860,-151.0,0.00031207,30]
[391652158,1760717450870,-151.0,0.00031207,30]
[391652159,1760717450879,-151.0,0.00031207,30]
[391652160,1760717450888,-151.0,0.00031207,30]
[391652161,1760717450897,-151.0,0.00031207,30]
[391652162,1760717450907,-151.0,0.00031207,30]
[391652163,1760717450916,-280.822506,0.00031207,30]
[391652164,1760717450926,-152.217191,0.00031207,30]
[391652165,1760717450936,-151.0,0.00031207,30]
[391652166,1760717450946,-151.0,0.00031207,30]
[391652167,1760717450955,-151.0,0.00031207,30]
[391652168,1760717450965,-151.0,0.00031207,30]
[391652169,1760717450978,-151.0,0.00031207,30]
[391652170,1760717450988,-151.0,0.00031207,30]
[391652171,1760717450998,-151.0,0.00031207,30]
[391652172,1760717451007,-151.0,0.00031207,30]
[391652173,1760717451017,-151.0,0.00031207,30]
[391652174,1760717451027,-151.0,0.00031207,30]
[391652175,1760717451037,-151.0,0.00031207,30]
[391652176,1760717451048,-151.0,0.00031207,30]
[391652177,1760717451057,-151.0,0.00031207,30]
[391652178,1760717451067,-151.0,0.00031207,30]
[391652179,1760717451077,-152.389663,0.00031207,30]
[391652180,1760717451087,-3000.0,0.00031208,2]
[391652181,1760717451096,-200.0,0.00031208,10]
[391652182,1760717451106,-155.0,0.00031208,2]
[391652183,1760717451115,-155.0,0.00031208,2]
[391652184,1760717451124,-150.0,0.00031208,2]
[391652185,1760717451134,-1091.0,0.00031208,10]
[391652186,1760717451144,-1091.0,0.00031208,10]
[391652187,1760717451154,-1091.0,0.00031208,10]
[391652188,1760717451163,-1091.0,0.00031208,10]
[391652189,1760717451173,-1091.0,0.00031208,10]
[391652190,1760717451182,-1091.0,0.00031208,10]
[391652191,1760717451191,-1091.0,0.00031208,10]
[391652192,1760717451201,-1091.0,0.00031208,10]
[391652193,1760717451210,-1091.0,0.00031208,10]
[391652194,1760717451219,-1091.0,0.00031208,10]
[391652195,1760717451230,-1091.0,0.00031208,10]
[391652196,1760717451239,-1091.0,0.00031208,10]
[391652197,1760717451248,-1091.0,0.00031208,10]
[391652198,1760717451258,-1091.0,0.00031208,10]
[391652199,1760717451268,-1091.0,0.00031208,10]
[391652200,1760717451277,-566.95,0.00031232,17]
[391652201,1760717451288,-952.79989158,0.00031232,17]
[391652202,1760717451297,-753.67913201,0.00031232,17]
[391652203,1760717451307,-298.26089446,0.00031236,2]
[391652204,1760717451317,-373.07297731,0.00031236,2]
[391652205,1760717451327,-721.12765535,0.00031238,2]
[391652206,1760717451337,-1091.0,0.00031273,5]
[391652207,1760717451347,-642.59302,0.00031273,2]
[391652208,1760717451356,-500.0,0.00031273,17]
[391652209,1760717451367,-150.0,0.00031274,20]
[391652210,1760717451376,-1299.54,0.000313,2]
[391652211,1760717451386,-1297.36,0.000313,30]
[391652212,1760717451396,-10318.09,0.000313,2]
[391652213,1760717451405,-3941.12,0.000313,7]
[391652214,1760717451415,-500.0,0.00031328,15]
[391652215,1760717451425,-496.57,0.00031382,30]
[391652216,1760717451434,-695.84326275,0.000314,30]
[391652217,1760717451443,-300.0,0.000314,120]
[391652218,1760717451453,-19314.13992853,0.0003143,4]
[391652219,1760717451463,-151.0,0.00031434,30]
[391652220,1760717451472,-151.0,0.00031434,30]
[391652221,1760717451482,-151.0,0.00031434,10]
[391652222,1760717451491,-151.0,0.00031434,30]
[391652223,1760717451501,-151.0,0.00031434,30]
[391652224,1760717451511,-151.0,0.00031434,30]
[391652225,1760717451521,-151.0,0.00031434,30]
[391652226,1760717451530,-151.0,0.00031434,30]
[391652227,1760717451539,-151.0,0.00031434,30]
[391652228,1760717451549,-151.0,0.00031434,30]
[391652229,1760717451559,-151.0,0.00031434,30]
[391652230,1760717451570,-151.0,0.00031434,30]
[391652231,1760717451581,-151.0,0.00031434,30]
[391652232,1760717451590,-274.074332,0.00031434,30]
[391652233,1760717451600,-151.0,0.00031434,30]
[391652234,1760717451610,-151.0,0.00031434,30]
[391652235,1760717451619,-151.0,0.00031434,30]
[391652236,1760717451629,-151.0,0.00031434,30]
[391652237,1760717451638,-151.0,0.00031434,30]
[391652238,1760717451648,-151.0,0.00031434,30]
[391652239,1760717451657,-288518.583,0.00031444,2]
[391652240,1760717451667,-151.0,0.00031444,30]
[391652241,1760717451677,-151.0,0.00031444,30]
[391652242,1760717451686,-151.0,0.00031444,30]
[391652243,1760717451696,-151.0,0.00031444,30]
[391652244,1760717451705,-151.0,0.00031444,30]
[391652245,1760717451715,-190.475164,0.00031444,30]
[391652246,1760717451724,-151.0,0.00031444,30]
[391652247,1760717451734,-151.0,0.00031444,30]
[391652248,1760717451744,-151.0,0.00031444,30]
[391652249,1760717451754,-151.0,0.00031444,30]
[391652250,1760717451764,-151.0,0.00031444,30]
[391652251,1760717451773,-151.0,0.00031444,30]
[391652252,1760717451783,-151.0,0.00031444,30]
[391652253,1760717451792,-151.0,0.00031444,30]
[391652254,1760717451802,-151.0,0.00031444,30]
[391652255,1760717451811,-152.407896,0.00031444,30]
[391652256,1760717451822,-151.0,0.00031444,30]
[391652257,1760717451832,-218.772244,0.00031444,30]
[391652258,1760717451841,-151.0,0.00031444,30]
[391652259,1760717451852,-154.393112,0.00031444,30]
[391652260,1760717451861,-436.0,0.00031452,2]
[391652261,1760717451871,-434.0,0.00031456,2]
[391652262,1760717451880,-2101.0,0.00031472,2]
[391652263,1760717451890,-194.007636,0.000315,2]
[391652264,1760717451900,-150.0,0.000315,2]
[391652265,1760717451909,-250.0,0.000315,15]
[391652266,1760717451919,-151.0,0.000315,7]
[391652267,1760717451929,-434.0,0.000315,2]
[391652268,1760717451938,-566.95,0.00031506,17]
[391652269,1760717451947,-500.0,0.00031506,120]
[391652270,1760717451957,-1001.0,0.00031507,120]
[391652271,1760717451968,-478.72,0.0003151,2]
[391652272,1760717451979,-1390.14,0.0003151,2]
[391652273,1760717451989,-2398.74,0.00031516,2]
[391652274,1760717451999,-151.0,0.00031516,30]
[391652275,1760717452008,-151.0,0.00031516,30]
[391652276,1760717452019,-273.442257,0.00031516,30]
[391652277,1760717452029,-151.0,0.00031516,30]
[391652278,1760717452039,-151.0,0.00031516,30]
[391652279,1760717452053,-151.0,0.00031516,30]
[391652280,1760717452063,-151.0,0.00031516,30]
[391652281,1760717452075,-151.0,0.00031516,30]
[391652282,1760717452085,-546.55,0.00031518,2]
[391652283,1760717452094,-175.82,0.00031518,2]
[391652284,1760717452104,-150.0,0.00031518,2]
[391652285,1760717452113,-447.98,0.00031518,2]
[391652286,1760717452123,-168.19,0.00031518,2]
[391652287,1760717452132,-150.0,0.00031518,2]
[391652288,1760717452142,-150.0,0.00031518,2]
[391652289,1760717452151,-413.65,0.00031518,2]
[391652290,1760717452161,-168.19,0.00031518,2]
[391652291,1760717452170,-700.0,0.00031547,7]
[391652292,1760717452181,-150.0,0.00031576,120]
[391652293,1760717452190,-500.0,0.00031602,15]
[391652294,1760717452200,-150.0,0.00031617,120]
[391652295,1760717452210,-1000.0,0.00031666,30]
[391652296,1760717452220,-185.0,0.000317,120]
[391652297,1760717452229,-157.27532359,0.00031765,2]
[391652298,1760717452239,-566.95,0.0003178,17]
[391652299,1760717452249,-2101.0,0.00031781,2]
[391652300,1760717452258,-1000.0,0.00031781,30]
[391652301,1760717452268,-214586.03479612,0.000318,120]
[391652302,1760717452385,-3600.0,0.000318,120]
[391652303,1760717452397,-1070.86980107,0.000318,120]
[391652304,1760717452408,-12004.74678733,0.000318,120]
[391652305,1760717452421,-779.40044192,0.000318,120]
[391652306,1760717452433,-1850.24500001,0.000318,120]
[391652307,1760717456846,-1.6e-07,0.000318,120]
[391652308,1760717456929,-151.0,0.00024657,2]
[391652309,1760717456940,-480.89036925,0.00024657,2]
[391652310,1760717456951,-19.10963075,0.00024657,2]
[391652311,1760717456961,-500.0,0.0002493,2]
[391652312,1760717456976,-500.0,0.00024931,2]
[391652313,1760717456985,-500.0,0.0002494,2]
[391652314,1760717456995,-76105.1551034,0.000318,120]
[391652315,1760717457007,-198000.0,0.000318,120]
[391652316,1760717457019,-5540.88909416,0.000318,120]
[391652317,1760717457030,-16799.73358036,0.000318,120]
[391652318,1760717457043,-287.02540688,0.000318,120]
[391652319,1760717457054,-369.772244,0.000318,120]
[391652320,1760717457065,-550.03331089,0.000318,120]
[391652321,1760717457079,-543.47639973,0.000318,120]
[391652322,1760717457133,-484.38892928,0.0002494,2]
[391652323,1760717457143,-257.25390896,0.0002494,2]
[391652324,1760717457273,-242.74609104,0.0002494,2]
[391652325,1760717457283,-500.0,0.0002494,2]
[391652326,1760717457294,-1739.80858611,0.000265,3]
[391652327,1760717457305,-2835.19141389,0.000265,3]
[391652328,1760717457315,-153.0,0.0002684,2]
[391652329,1760717457325,-153.0,0.0002684,2]
[391652330,1760717457335,-153.0,0.0002684,2]
[391652331,1760717457344,-5512.0,0.000271,5]
[391652332,1760717457353,-1885.0,0.0002756,5]
[391652333,1760717457363,-42771.79130731,0.000318,120]
[391652334,1760717457375,-1076.2752,0.000318,120]
[391652335,1760717457386,-19858.37104548,0.000318,120]
[391652336,1760717457397,-1865.76926393,0.000318,120]
[391652337,1760717457409,-583.22499934,0.000318,120]
[391652338,1760717457420,-17120.0,0.000318,120]
[391652345,1760717465317,200.0,0.00031208,120]
[391652364,1760717547354,200.0,0.00031208,30]
[391652365,1760717547797,300.0,0.00031208,30]
[391652375,1760717764460,200.0,0.0003121,120]
[391652380,1760717810037,154.02,9.956e-05,2]
[391652381,1760717810246,154.02,0.00010722,2]
[391652382,1760717810511,154.02,0.00011488,2]
[391652383,1760717810727,154.02,0.00012254,2]
[391652385,1760717842771,200.0,0.0003121,30]
[391652386,1760717843262,300.0,0.0003121,30]
[391652391,1760717852739,50000.0,0.0003121,30]
[391652392,1760717857999,50000.0,0.0003121,31]
[391652393,1760717874931,50000.0,0.0003121,32]
[391652394,1760717879049,50000.0,0.0003121,33]
[391652395,1760717883489,50000.0,0.0003121,34]
[391652396,1760717919412,50000.0,0.0003121,35]
[391652397,1760717923372,50000.0,0.0003121,36]
[391652398,1760717928132,50000.0,0.0003121,37]
[391652404,1760717964453,30000.0,0.0003121,38]
[391652405,1760717969241,1427.0,0.0003121,30]
[391652406,1760717992808,5050.0,0.00031218,37]
[391652411,1760718062440,200.0,0.00031218,120]
[391652412,1760718072501,796.42,0.00025111,120]
[391652417,1760718139981,-154.02,0.0001302,2]
[391652418,1760718140007,-168.07754704,0.00013403,3]
[391652419,1760718142001,-166.66,0.00013403,3]
[391652420,1760718145293,200.0,0.00031218,30]
[391652421,1760718146948,300.0,0.00031218,30]
[391652435,1760718362540,159.16190694,8e-05,2]
[391652436,1760718363252,200.0,0.00031219,120]
[391652437,1760718366330,365.23193689,0.00011,2]
[391652441,1760718439831,-151.0,0.0001302,2]
[391652442,1760718439856,-181.70482992,0.0001305,2]
[391652443,1760718439881,-99.76375169,0.00013403,3]
[391652448,1760718445484,200.0,0.00031219,30]
[391652449,1760718445919,300.0,0.00031219,30]
[391652480,1760718572717,-250.0,0.00014538,7]
[391652481,1760718587944,-500.0,0.00013418,3]
[391652482,1760718587964,-500.0,0.00013693,3]
[391652483,1760718587985,-500.0,0.00013693,3]
[391652484,1760718588005,-500.0,0.00013693,3]
[391652485,1760718604121,-298.27449584,0.0001305,2]
[391652486,1760718604151,-500.0,0.00013374,3]
[391652487,1760718604174,-500.0,0.00013665,3]
[391652488,1760718604197,-94.98157097,0.00013665,3]
[391652494,1760718613506,-405.01842903,0.00013665,3]
[391652495,1760718613527,-176.25,0.00013699,2]
[391652496,1760718613549,-154.02,0.00013786,2]
[391652497,1760718613570,-569.71157097,0.00013857,2]
[391652498,1760718625885,-500.0,0.00014355,3]
[391652499,1760718625908,-500.0,0.00014355,3]
[391652514,1760718631895,-202.08027241,0.00014254,2]
[391652515,1760718631905,-694.0,0.00014319,2]
[391652516,1760718631915,-29.02498674,0.00014319,2]
[391652517,1760718631930,-713.83442561,0.00014319,2]
[391652518,1760718631942,-457.14058765,0.00014319,2]
[391652519,1760718631954,-209.0,0.00014354,2]
[391652520,1760718631965,-300.0,0.00014354,2]
[391652521,1760718631976,-300.0,0.00014354,2]
[391652522,1760718631986,-195.0,0.00014355,2]
[391652523,1760718631995,-2500.0,0.00014355,2]
[391652524,1760718632005,-2500.0,0.00014355,2]
[391652525,1760718632016,-300.0,0.00014355,2]
[391652526,1760718632025,-1152.29,0.00014491,2]
[391652527,1760718632035,-154.02,0.00014552,2]
[391652528,1760718632045,-195.0,0.00014743,2]
[391652529,1760718632055,-2500.0,0.00014743,2]
[391652530,1760718632064,-153.3295349,0.000149,2]
[391652531,1760718632074,-3209.27555663,0.000149,2]
[391652532,1760718632084,-202.08027241,0.000149,2]
[391652533,1760718632094,-3209.27555654,0.00014935,2]
[391652534,1760718632107,-3209.27555654,0.00014971,2]
[391652535,1760718632118,-150.0,0.00014972,2]
[391652536,1760718632127,-500.0,0.00014973,2]
[391652537,1760718632136,-500.0,0.00014973,2]
[391652538,1760718632146,-500.0,0.00014973,2]
[391652539,1760718632156,-399.25149774,0.00014973,2]
[391652540,1760718632167,-500.0,0.00014973,2]
[391652541,1760718632176,-500.0,0.00014973,2]
[391652542,1760718632186,-500.0,0.00014973,2]
[391652543,1760718632197,-500.0,0.00014973,2]
[391652544,1760718632207,-500.0,0.00014973,2]
[391652546,1760718632216,-476.87708629,0.00014973,2]
[391652547,1760718632227,-200.0,0.00014991,2]
[391652548,1760718632236,-360.54921989,0.00014999,2]
[391652549,1760718632246,-389.80103566,0.00014999,2]
[391652550,1760718632261,-500.0,0.00014999,2]
[391652551,1760718632272,-595.23898256,0.00014999,2]
[391652553,1760718632281,-500.0,0.00014999,2]
[391652555,1760718632291,-500.0,0.00014999,2]
[391652557,1760718632305,-500.0,0.00014999,2]
[391652559,1760718632315,-500.0,0.00014999,2]
[391652561,1760718632324,-314.92637819,0.00014999,2]
[391652563,1760718632334,-500.0,0.00014999,2]
[391652565,1760718632344,-316.31307033,0.00014999,2]
[391652567,1760718632357,-500.0,0.00014999,2]
[391652569,1760718632366,-486.55154554,0.00014999,2]
[391652571,1760718632377,-216.93643203,0.00015,2]
[391652573,1760718632393,-981.73571888,0.00015,2]
[391652575,1760718632403,-9743.26428112,0.00015,2]
[391652577,1760718632415,-9875.70810928,0.00015,2]
[391652580,1760718632427,-605.71259571,0.00015,2]
[391652582,1760718632438,-3115.61143538,0.00015,2]
[391652584,1760718632449,-1508.67617989,0.00015,2]
[391652586,1760718632461,-609.83448956,0.00015,2]
[391652588,1760718632472,-1593.66330319,0.00015,2]
[391652600,1760718632817,-18641.50760187,0.00015,2]
[391652601,1760718632830,-3508.70572972,0.00015,2]
[391652602,1760718632847,-1026.2531425,0.00015,2]
[391652603,1760718632863,-1182.67376955,0.00015,2]
[391652604,1760718632878,-807.913,0.00015,2]
[391652605,1760718632890,-130735.15747387,0.00015,2]
[391652606,1760718632901,-52504.22134082,0.00015,2]
[391652607,1760718632913,-52816.35401584,0.00015,2]
[391652608,1760718632925,-60233.81100233,0.00015,2]
[391652609,1760718632936,-1127.84011421,0.00015,2]
[391652610,1760718632947,-615.91582045,0.00015,2]
[391652611,1760718632959,-486.87103,0.00015,2]
[391652612,1760718632969,-2326.17678059,0.00015,2]
[391652613,1760718632981,-6671.02713719,0.00015,2]
[391652614,1760718632992,-1401.20495247,0.00015,2]
[391652615,1760718637939,-1352.89818441,0.00015,2]
[391652618,1760718637951,-2414.55222579,0.00015,2]
[391652619,1760718637963,-606.44106056,0.00015,2]
[391652620,1760718637975,-297.18518212,0.00015,2]
[391652621,1760718638004,-2918.46764344,0.00015,2]
[391652622,1760718638016,-401.616215,0.00015,2]
[391652623,1760718638028,-4035.39051205,0.00015,2]
[391652624,1760718638066,-1460.74491193,0.00015,2]
[391652625,1760718638079,-5530.0,0.00015,2]
[391652626,1760718638094,-2738.57533887,0.00015,2]
[391652627,1760718638106,-1052.681047,0.00015,2]
[391652628,1760718638133,-472.09048088,0.00015,2]
[391652629,1760718638195,-4065.80000001,0.00015,2]
[391652639,1760718639909,-84989.23658856,0.00015,2]
[391652640,1760718639921,-1654.10827272,0.00015,2]
[391652641,1760718639970,-2510.54999763,0.00015,2]
[391652642,1760718639982,-9447.39981517,0.00015,2]
[391652643,1760718639994,-6442.85000011,0.00015,2]
[391652644,1760718640005,-2682.05000002,0.00015,2]
[391652645,1760718640017,-880.0301178,0.00015,2]
[391652646,1760718640030,-269.36548125,0.00015,2]
[391652647,1760718640041,-4611.76540006,0.00015,2]
[391652648,1760718640146,-2780.59593106,0.00015,2]
[391652649,1760718640158,-699.78338548,0.00015,2]
[391652650,1760718640216,-666280.80786881,0.00015,2]
[391652651,1760718640277,-1000.0,0.00015,2]
[391652656,1760718643097,-512.700971,0.00015,2]
[391652657,1760718643319,-5837.60345878,0.00015,2]
[391652658,1760718643334,-25210.34708095,0.00015,2]
[391652659,1760718643347,-14412.73582692,0.00015,2]
[391652661,1760718645990,-536.47377775,0.00015,2]
[391652662,1760718646001,-3813.91009867,0.00015,2]
[391652663,1760718646107,-784.16085457,0.00015,2]
[391652664,1760718646120,-1500.0,0.00015,2]
[391652665,1760718646131,-418.06931013,0.00015,2]
[391652666,1760718646224,-444.52577509,0.00015,2]
[391652669,1760718662355,200.0,0.0003122,120]
[391652675,1760718742602,200.0,0.00031221,30]
[391652676,1760718743204,300.0,0.00031221,30]
[391652692,1760718922636,1219.6035491,0.00012,2]
[391652697,1760718961930,200.0,0.00031221,120]
[391652702,1760719046455,200.0,0.00031386,30]
[391652703,1760719046870,300.0,0.00031386,30]
[391652714,1760719262771,200.0,0.00031386,120]
[391652720,1760719344137,200.0,0.00031386,30]
[391652721,1760719344674,300.0,0.00031386,30]
[391652729,1760719430427,2848.34740493,0.00031386,66]
[391652741,1760719533333,317.78,0.00031386,120]
[391652799,1760719562276,200.0,0.00031386,120]
[391652892,1760719647706,200.0,0.00031393,30]
[391652893,1760719648206,300.0,0.00031393,30]
[391652896,1760719832078,-500.0,0.00013632,2]
[391652897,1760719832087,-1.64312512,0.00013665,3]
[391652898,1760719832131,-498.35687488,0.00013665,3]
[391652899,1760719832141,-987.3,0.00013698,2]
[391652900,1760719832151,-166.66,0.00013699,2]
[391652901,1760719832160,-500.0,0.00013758,3]
[391652902,1760719832170,-500.0,0.00013758,3]
[391652903,1760719832180,-166.66,0.00013869,2]
[391652904,1760719832189,-555.33,0.00013892,2]
[391652905,1760719832199,-666.0,0.00013898,3]
[391652906,1760719832208,-300.0,0.00013907,2]
[391652907,1760719832217,-300.0,0.00013907,2]
[391652908,1760719832226,-1200.0,0.00013907,2]
[391652909,1760719832235,-195.0,0.00013908,2]
[391652910,1760719832244,-300.0,0.00013908,2]
[391652911,1760719832254,-150.0,0.00013927,2]
[391652912,1760719832263,-1500.0,0.0001393,2]
[391652913,1760719832273,-319.22,0.00013938,2]
[391652914,1760719832282,-166.66,0.0001404,2]
[391652915,1760719832291,-166.66,0.00014211,2]
[391652916,1760719832300,-166.66,0.00014382,2]
[391652917,1760719832309,-166.66,0.00014553,2]
[391652918,1760719832319,-890.08130565,0.00014694,2]
[391652919,1760719832329,-16956.06800274,0.000148,2]
[391652920,1760719832338,-199.02660303,0.000148,2]
[391652921,1760719832347,-16956.06800271,0.00014811,2]
[391652922,1760719832357,-16956.06800271,0.00014822,2]
[391652923,1760719832367,-16956.06800271,0.00014833,2]
[391652924,1760719832376,-16956.06800271,0.00014844,2]
[391652925,1760719832385,-16956.06800271,0.00014856,2]
[391652926,1760719832394,-518.33947002,0.00014858,2]
[391652927,1760719832405,-518.33947,0.00014864,2]
[391652928,1760719832415,-16956.06800271,0.00014867,2]
[391652929,1760719832424,-518.33947,0.0001487,2]
[391652930,1760719832433,-150.0,0.00014872,2]
[391652931,1760719832442,-500.0,0.00014873,2]
[391652932,1760719832452,-500.0,0.00014873,2]
[391652933,1760719832462,-500.0,0.00014873,2]
[391652935,1760719832471,-500.0,0.00014873,2]